bitfinex-derivatives/quotes_SOLF0:USTF0_20240818
["timestamp","ask_amount","ask_price","bid_price","bid_amount"]
[1724005505614,3.4519,144.81,144.8,7.46959723]
[1724005507912,3.4519,144.81,144.8,0.04959723]
[1724005508215,3.4519,144.81,144.8,7.46959723]
[1724005509615,0.04379596,144.83,144.8,37.14959723]
[1724005509819,0.04379596,144.83,144.81,7.42]
[1724005510024,3.49529596,144.83,144.81,7.42]
[1724005510916,0.04379596,144.83,144.81,7.42]
[1724005513022,0.04379596,144.83,144.81,10.8718]
[1724005514215,3.4511,144.85,144.82,3.4517]
[1724005514416,3.3484,144.88,144.84,7.42]
[1724005514613,3.3484,144.88,144.86,7.42]
[1724005514816,3.4506,144.87,144.86,7.42]
[1724005515712,1.6248,144.91,144.86,7.42]
[1724005515914,1.6248,144.91,144.88,7.42]
[1724005516314,1.6248,144.91,144.88,7.46870931]
[1724005517012,3.4503,144.89,144.88,7.46870931]
[1724005517215,3.4503,144.89,144.88,0.04870931]
[1724005528228,3.4503,144.89,144.88,7.46870931]
[1724005534031,3.4499,144.9,144.88,7.46870931]
[1724005534227,3.4499,144.9,144.89,7.42]
[1724005537136,5.8878,144.96,144.89,7.42]
[1724005537336,5.8878,144.96,144.91,7.42]
[1724005537639,3.4493,144.93,144.91,7.46953142]
[1724005538235,3.4493,144.92,144.91,7.46953142]
[1724005541937,3.4493,144.92,144.91,0.04953142]
[1724005542140,3.4493,144.92,144.91,7.46953142]
[1724005542543,3.4493,144.92,144.91,0.04953142]
[1724005558055,3.4493,144.92,144.91,7.46953142]
[1724005561253,3.4492,144.93,144.91,7.46953142]
[1724005561448,3.4492,144.93,144.92,7.42]
[1724005561846,3.4489,144.94,144.92,7.42]
[1724005562354,4.24,144.96,144.92,7.42]
[1724005562554,3.4484,144.96,144.95,7.42]
[1724005563851,3.4486,144.95,144.94,0.04953929]
[1724005569963,3.42049548,145.05,144.95,3.41049403]
[1724005570257,3.4472,145.01,145.0,7.42]
[1724005571053,3.4474,145.0,144.99,7.47044588]
[1724005572959,3.4474,145.0,144.99,0.05044588]
[1724005573151,7.42,145.02,144.91,3.4043814]
[1724005573351,7.42,144.99,144.93,7.42]
[1724005573759,3.4487,144.95,144.93,7.42]
[1724005574160,3.49373211,144.95,144.93,7.46516152]
[1724005576564,3.4488,144.94,144.93,7.46516152]
[1724005576765,0.04503211,144.95,144.93,7.46516152]
[1724005577064,0.04503211,144.95,144.93,0.04516152]
[1724005577274,0.04503211,144.95,144.94,7.42]
[1724005577767,3.49373211,144.95,144.94,7.42]
[1724005580667,0.04503211,144.95,144.94,7.42]
[1724005585870,3.4482,144.97,144.94,10.8688]
[1724005586069,3.2768,145.01,144.96,7.42]
[1724005586273,3.2768,145.01,144.94,29.68]
[1724005586274,3.2768,145.01,144.99,7.42]
[1724005587070,3.4474,145.0,144.99,7.46689494]
[1724005589073,3.47498613,145.05,144.99,7.46689494]
[1724005589275,1.6707,145.07,144.99,7.46689494]
[1724005589276,1.7241,145.04,145.0,7.42]
[1724005589576,1.7241,145.04,145.01,0.04374557]
[1724005590075,3.4469,145.02,145.01,0.04374557]
[1724005593777,3.4479,144.98,144.97,7.42]
[1724005595678,3.50014885,144.99,144.97,7.42]
[1724005595978,3.50014885,144.99,144.98,7.42]
[1724005597273,0.05244885,144.99,144.96,7.47311968]
[1724005597580,0.05244885,144.99,144.96,0.05311968]
[1724005597771,3.4481,144.97,144.96,0.05311968]
[1724005599883,3.4481,144.97,144.96,7.47311968]
[1724005601181,3.4481,144.97,144.96,0.05311968]
[1724005603178,3.4481,144.97,144.96,7.47311968]
[1724005605688,3.4481,144.97,144.96,0.05311968]
[1724005613690,3.4481,144.97,144.96,7.47311968]
[1724005616092,3.4481,144.97,144.96,0.05311968]
[1724005626197,3.44370957,144.97,144.9,4.24]
[1724005626398,7.42,145.0,144.92,7.42]
[1724005627407,3.4484,144.96,144.95,0.05205361]
[1724005627706,7.68477231,144.97,144.89,1.6199]
[1724005627905,1.6022,144.96,144.91,7.42]
[1724005628907,3.4494,144.92,144.91,7.42]
[1724005629822,3.4491,144.93,144.91,7.42]
[1724005630109,3.4491,144.93,144.92,7.42]
[1724005648014,0.04819829,144.95,144.92,7.42]
[1724005648220,0.04819829,144.95,144.94,7.42]
[1724005649920,3.49679829,144.95,144.94,7.42]
[1724005650423,3.4485,144.96,144.94,7.42]
[1724005650717,3.4485,144.96,144.95,7.42]
[1724005665227,0.0448861,144.97,144.96,3.4484]
[1724005665427,6.62211715,145.06,144.96,7.60059804]
[1724005665625,6.62211715,145.06,145.01,7.42]
[1724005665826,3.4471,145.02,145.01,7.42]
[1724005668628,0.04578101,145.03,145.0,0.04784869]
[1724005668629,3.4472,145.01,145.0,0.04784869]
[1724005668830,3.4472,145.01,145.0,7.46784869]
[1724005670530,3.447,145.02,145.0,7.46784869]
[1724005673135,3.447,145.02,145.01,7.42]
[1724005675636,3.49258101,145.03,145.01,7.42]
[1724005680735,3.4469,145.02,145.01,7.42]
[1724005688642,0.04578101,145.03,145.01,7.42]
[1724005689855,3.49248101,145.03,145.01,7.42]
[1724005690044,0.04578101,145.03,145.0,0.04784869]
[1724005690243,0.04578101,145.03,145.02,7.42]
[1724005690847,3.49248101,145.03,145.02,7.42]
[1724005691639,0.04578101,145.03,145.02,7.42]
[1724005699163,3.49248101,145.03,145.02,7.42]
[1724005701164,3.447,145.02,145.0,0.04784869]
[1724005701669,3.447,145.02,145.01,7.42]
[1724005706568,3.4472,145.01,145.0,0.04784869]
[1724005706766,3.4472,145.01,145.0,7.46784869]
[1724005711168,3.4472,145.01,145.0,0.04784869]
[1724005711368,3.4472,145.01,145.0,7.46784869]
[1724005715978,3.4472,145.01,145.0,0.04784869]
[1724005716169,3.4472,145.01,145.0,7.46784869]
[1724005718179,0.04578101,145.03,145.0,7.46784869]
[1724005718381,0.04578101,145.03,145.02,7.42]
[1724005718977,0.04578101,145.03,145.01,7.42]
[1724005720877,3.4469,145.02,145.01,7.42]
[1724005732994,3.4472,145.01,145.0,0.04784869]
[1724005733292,7.46578101,145.03,144.94,1.6336]
[1724005733597,3.4481,144.97,144.96,7.42]
[1724005734193,0.05286163,144.98,144.95,0.04592416]
[1724005734391,0.05286163,144.98,144.96,7.42]
[1724005734901,3.4481,144.97,144.96,7.42]
[1724005737992,3.4484,144.96,144.95,7.46592416]
[1724005752710,0.05286163,144.98,144.95,7.46592416]
[1724005752904,0.05286163,144.98,144.97,7.42]
[1724005753407,3.50076163,144.98,144.97,7.42]
[1724005754605,3.4484,144.96,144.95,0.04592416]
[1724005761825,3.4492,144.93,144.92,7.42]
[1724005772019,3.49583164,144.94,144.92,7.42]
[1724005772226,3.49583164,144.94,144.93,7.42]
[1724005773930,3.36737715,144.99,144.93,7.42]
[1724005774232,4.22,145.0,144.97,7.42]
[1724005774420,3.39429013,144.99,144.97,7.42]
[1724005774626,3.4479,144.98,144.97,7.42]
[1724005793642,0.05156583,144.99,144.97,7.42]
[1724005793837,0.05156583,144.99,144.98,7.42]
[1724005794443,3.49926583,144.99,144.98,7.42]
[1724005794847,4.22,145.03,144.98,7.42]
[1724005795041,4.22,145.03,145.01,7.42]
[1724005795436,3.4469,145.02,145.01,7.42]
[1724005801850,0.04703891,145.03,145.01,7.42]
[1724005802051,0.04703891,145.03,145.02,7.42]
[1724005802752,3.49383891,145.03,145.02,7.42]
[1724005804054,3.447,145.02,145.01,7.42]
[1724005806663,3.4472,145.01,145.0,7.46574105]
[1724005806867,0.04703891,145.03,145.0,7.46574105]
[1724005807053,0.04703891,145.03,145.02,7.42]
[1724005807254,0.04703891,145.03,145.0,0.04574105]
[1724005807467,0.04703891,145.03,145.02,7.42]
[1724005808360,3.49383891,145.03,145.02,7.42]
[1724005809766,0.04703891,145.03,145.02,7.42]
[1724005809956,3.4466,145.04,145.02,7.42]
[1724005811064,3.4463,145.05,145.02,10.8669]
[1724005811260,3.4463,145.05,145.04,7.42]
[1724005812355,3.48671651,145.07,145.04,7.42]
[1724005812564,3.446,145.06,145.02,0.05153398]
[1724005812758,3.446,145.06,145.05,7.42]
[1724005813361,3.4458,145.07,145.05,7.42]
[1724005813566,1.7344,145.08,145.05,7.46399738]
[1724005813967,1.7344,145.08,145.07,7.42]
[1724005814467,56.71275969,145.16,145.07,7.42]
[1724005814663,1.6617,145.15,145.1,7.46925928]
[1724005814868,3.4443,145.13,145.12,7.42]
[1724005815069,5.08671102,145.15,145.12,7.42]
[1724005815267,1.6617,145.15,145.14,7.42]
[1724005815472,5.1055,145.15,145.14,7.42]
[1724005815773,1.6617,145.15,145.13,0.04937206]
[1724005816866,3.4441,145.14,145.13,0.04937206]
[1724005817567,3.4453,145.09,145.06,1.7303]
[1724005817768,7.42,145.14,145.07,7.42]
[1724005818274,3.4456,145.08,145.07,7.42]
[1724005821167,3.4457,145.07,145.06,0.05172015]
[1724005823573,3.4457,145.07,145.06,7.47172015]
[1724005826276,3.4456,145.08,145.06,7.47172015]
[1724005826476,3.4456,145.08,145.07,7.42]
[1724005827171,0.05153857,145.09,145.07,7.42]
[1724005828274,3.49683857,145.09,145.07,7.42]
[1724005828668,0.05153857,145.09,145.07,7.42]
[1724005829477,0.05153857,145.09,145.07,10.8656]
[1724005832374,3.4449,145.11,145.08,3.4455]
[1724005832574,3.4449,145.11,145.09,7.42]
[1724005834170,3.2134,145.13,145.09,7.42]
[1724005834368,3.2134,145.13,145.11,7.42]
[1724005835169,3.4446,145.12,145.11,7.42]
[1724005840478,3.4448,145.11,145.1,0.04381423]
[1724005840671,3.4448,145.11,145.1,7.46381423]
[1724005844279,3.4447,145.12,145.1,7.46381423]
[1724005844478,3.4447,145.12,145.11,7.42]
[1724005844678,4.2,145.15,145.11,7.42]
[1724005844875,4.2,145.15,145.14,7.42]
[1724005845276,3.4438,145.15,145.14,7.42]
[1724005852381,3.4437,145.16,145.14,7.42]
[1724005852584,3.4437,145.16,145.15,7.42]
[1724005852787,5.00099173,145.21,145.15,7.42]
[1724005852985,1.5704,145.21,145.19,7.42]
[1724005853283,3.51183365,145.2,145.19,0.04632565]
[1724005854888,6.95453365,145.2,145.19,0.04632565]
[1724005858387,3.4427,145.2,145.19,0.04632565]
[1724005858986,7.46736058,145.2,145.14,7.42]
[1724005859194,10.82814568,145.2,145.14,7.42]
[1724005859385,3.444,145.15,145.14,7.42]
[1724005860493,3.4441,145.14,145.13,0.05239714]
[1724005861198,3.4441,145.14,145.13,7.47239714]
[1724005864892,3.4439,145.15,145.13,7.47239714]
[1724005865099,3.4439,145.15,145.14,7.42]
[1724005867896,3.4439,145.15,145.13,0.05239714]
[1724005868203,0.04833325,145.16,145.14,7.42]
[1724005868897,3.4438,145.15,145.14,7.42]
[1724005870705,3.49203325,145.16,145.14,7.42]
[1724005870901,3.49203325,145.16,145.15,7.42]
[1724005873201,3.4439,145.15,145.14,7.42]
[1724005875304,3.49203325,145.16,145.14,7.42]
[1724005875603,4.2,145.2,145.15,7.42]
[1724005875898,4.2,145.2,145.19,7.42]
[1724005876306,4.96309506,145.21,145.15,3.4436]
[1724005876607,1.5704,145.21,145.2,7.42]
[1724005876799,3.4424,145.21,145.2,7.42]
[1724005877996,3.4421,145.23,145.2,7.42]
[1724005878305,60.91275969,145.27,145.21,7.42]
[1724005878494,60.91275969,145.27,145.25,7.42]
[1724005878698,60.91275969,145.27,145.25,7.46550536]
[1724005878896,60.91275969,145.27,145.25,0.04550536]
[1724005879102,3.4412,145.26,145.25,0.04550536]
[1724005881112,3.4424,145.21,145.2,7.42]
[1724005884308,3.4427,145.2,145.19,0.04776308]
[1724005886405,3.4427,145.2,145.19,7.46776308]
[1724005887419,3.4425,145.21,145.19,7.46776308]
[1724005887620,3.4425,145.21,145.2,7.42]
[1724005890218,3.4898297,145.22,145.2,7.42]
[1724005891315,0.0476297,145.22,145.2,10.8625]
[1724005892623,3.4898297,145.22,145.2,10.8625]
[1724005894819,1.5579,145.26,145.2,10.8625]
[1724005895022,1.5579,145.26,145.24,7.42]
[1724005895618,1.5579,145.26,145.24,7.47076779]
[1724005896822,3.4415,145.25,145.24,7.47076779]
[1724005900921,3.4415,145.25,145.24,0.05076779]
[1724005906533,3.4422,145.22,145.21,7.42]
[1724005906831,7.42,145.22,145.12,4.2]
[1724005907029,7.42,145.22,145.05,235.8922]
[1724005907030,3.4438,145.16,145.15,7.42]
[1724005908828,3.4438,145.15,145.14,0.0462947]
[1724005910327,0.05005014,145.17,145.14,3.4901947]
[1724005910535,0.05005014,145.17,145.16,7.42]
[1724005911930,1.4982,145.21,145.16,37.1]
[1724005912131,1.4982,145.21,145.2,7.42]
[1724005912330,3.4424,145.21,145.2,7.42]
[1724005912527,3.4424,145.21,145.2,18.5]
[1724005914531,3.4423,145.22,145.2,18.5]
[1724005916730,1.5945,145.24,145.2,18.5]
[1724005916942,1.5945,145.24,145.19,18.54769589]
[1724005917437,3.4427,145.2,145.19,18.54769589]
[1724005919537,3.4427,145.2,145.19,0.04769589]
[1724005921743,3.4427,145.2,145.19,18.54769589]
[1724005921939,3.4426,145.21,145.19,18.54769589]
[1724005922943,4.2,145.23,145.19,18.54769589]
[1724005922944,3.4423,145.22,145.19,21.99059589]
[1724005923346,3.4423,145.22,145.21,18.5]
[1724005924046,3.442,145.23,145.21,18.5]
[1724005925045,3.4422,145.22,145.21,18.5]
[1724005932249,32.68493031,145.29,145.21,18.5]
[1724005932250,5.10343031,145.29,145.21,18.5]
[1724005932557,10.90493031,145.29,145.24,18.55191913]
[1724005932746,7.3955,145.29,145.24,18.55191913]
[1724005934145,4.2,145.29,145.24,18.55191913]
[1724005934350,1.6015,145.31,145.24,18.55191913]
[1724005934551,3.50067618,145.3,145.27,7.4]
[1724005934751,1.6015,145.31,145.27,7.44868206]
[1724005935146,3.4408,145.28,145.27,7.44868206]
[1724005937856,3.4408,145.28,145.27,0.04868206]
[1724005951263,3.4408,145.28,145.27,7.44868206]
[1724005955863,3.4406,145.29,145.27,7.44868206]
[1724005956059,3.4406,145.29,145.28,7.4]
[1724005956465,37.8549,145.39,145.28,7.4]
[1724005956654,4.2,145.35,145.33,7.4]
[1724005956859,4.2,145.35,145.34,7.4]
[1724005957165,1.5553,145.36,145.34,7.4]
[1724005957360,4.2,145.39,145.35,7.4]
[1724005957559,11.6,145.42,145.36,7.4]
[1724005957759,3.4393,145.35,145.34,7.4]
[1724005958264,7.4,145.4,145.33,7.45190728]
[1724005958265,3.4393,145.34,145.33,7.45190728]
[1724005958664,7.4,145.36,145.26,4.9302]
[1724005958864,10.496,145.35,145.32,0.05009965]
[1724005959059,16.1802,145.35,145.32,0.05009965]
[1724005959261,3.4396,145.33,145.32,0.05009965]
[1724005964266,3.4394,145.34,145.32,0.05009965]
[1724005964570,3.4394,145.34,145.33,7.4]
[1724005967663,3.4392,145.35,145.33,7.4]
[1724005967859,3.4392,145.35,145.34,7.4]
[1724005969163,10.878249,145.37,145.32,0.05009965]
[1724005969365,28.1,145.37,145.32,0.05009965]
[1724005969567,7.4,145.34,145.32,0.05009965]
[1724005969769,6.4689,145.33,145.32,0.05009965]
[1724005970066,10.6489,145.33,145.32,0.05009965]
[1724005970259,7.2093,145.33,145.26,1.4891]
[1724005970464,7.2093,145.33,145.27,7.4]
[1724005970666,3.4409,145.28,145.27,7.4]
[1724005971265,0.04814921,145.29,145.27,7.4]
[1724005971465,0.04814921,145.29,145.28,7.4]
[1724005972569,3.48864921,145.29,145.26,1.53937396]
[1724005972768,3.48864921,145.29,145.27,7.4]
[1724005973768,3.4408,145.28,145.27,7.4]
[1724005974071,0.04814921,145.29,145.27,7.4]
[1724005974463,3.48884921,145.29,145.27,7.4]
[1724005976171,3.4408,145.28,145.27,7.4]
[1724005976962,3.441,145.27,145.26,0.05027396]
[1724005977968,3.4419,145.24,145.21,1.5439]
[1724005978172,3.4419,145.24,145.23,7.4]
[1724005983274,3.49014302,145.25,145.23,7.4]
[1724005983476,3.49014302,145.25,145.24,7.4]
[1724005984870,0.04864302,145.25,145.24,7.4]
[1724005985080,4.2,145.29,145.24,7.4]
[1724005985274,4.2,145.29,145.27,7.4]
[1724005985474,3.4408,145.28,145.27,7.4]
[1724005986284,3.441,145.27,145.26,7.44551148]
[1724005988988,3.441,145.27,145.26,0.04551148]
[1724005989686,4.24474189,145.29,145.19,1.5175]
[1724005989880,4.2,145.29,145.24,7.4]
[1724005990686,0.04745911,145.28,145.25,0.04778621]
[1724005991900,3.4412,145.26,145.25,0.04778621]
[1724005992997,0.04745911,145.28,145.25,7.44778621]
[1724005993201,0.04745911,145.28,145.27,7.4]
[1724005993501,3.48825911,145.28,145.27,7.4]
[1724005994107,0.04745911,145.28,145.27,7.4]
[1724005994408,4.2,145.32,145.27,7.4]
[1724005994601,3.4398,145.32,145.3,7.4]
[1724005994807,4.2,145.35,145.3,7.4]
[1724005995001,3.44,145.32,145.3,7.4]
[1724005995399,3.48666516,145.32,145.3,7.45137945]
[1724005995798,0.04666516,145.32,145.31,7.4]
[1724006000106,0.04666516,145.32,145.31,10.8401]
[1724006005708,0.04666516,145.32,145.3,3.49167945]
[1724006006015,0.04666516,145.32,145.3,0.05137945]
[1724006006403,3.4401,145.31,145.3,0.05137945]
[1724006006713,0.04666516,145.32,145.3,0.05137945]
[1724006006908,3.4401,145.31,145.3,0.05137945]
[1724006007502,4.9881,145.31,145.3,0.05137945]
[1724006009812,3.4408,145.28,145.25,3.4414]
[1724006010011,1.548,145.31,145.26,7.4]
[1724006010811,3.4406,145.29,145.26,10.8412]
[1724006011019,0.04906689,145.3,145.28,7.4]
[1724006011311,0.04906689,145.3,145.29,7.4]
[1724006011810,3.48936689,145.3,145.29,7.4]
[1724006013011,0.04906689,145.3,145.29,7.4]
[1724006013813,1.4961,145.36,145.29,7.4]
[1724006014012,1.4961,145.36,145.35,7.4]
[1724006014315,4.935,145.36,145.35,7.4]
[1724006015219,3.4391,145.35,145.34,7.45081119]
[1724006015907,3.4391,145.35,145.34,0.05081119]
[1724006022119,3.4391,145.35,145.34,7.45081119]
[1724006024919,3.4391,145.35,145.34,0.05081119]
[1724006026324,3.4402,145.31,145.26,4.18]
[1724006026518,3.4402,145.31,145.29,7.4]
[1724006027316,3.48559643,145.31,145.29,7.44414539]
[1724006028824,3.48559643,145.31,145.29,0.04414539]
[1724006029025,3.48559643,145.31,145.29,7.44414539]
[1724006029925,3.48559643,145.31,145.29,0.04414539]
[1724006030129,3.48559643,145.31,145.29,7.44414539]
[1724006032029,3.4403,145.3,145.29,7.44414539]
[1724006032334,0.04539643,145.31,145.26,7.4]
[1724006032531,5.7122,145.31,145.26,7.4]
[1724006032831,7.4,145.29,145.22,7.4]
[1724006033028,7.4,145.29,145.24,7.4]
[1724006033224,3.4414,145.26,145.24,7.4]
[1724006033425,3.4414,145.26,145.25,0.05120183]
[1724006033626,0.04734851,145.28,145.25,0.05120183]
[1724006033825,3.48824851,145.28,145.27,7.4]
[1724006039535,0.04734851,145.28,145.27,7.4]
[1724006040032,0.04734851,145.28,145.25,7.45120183]
[1724006040537,3.48824851,145.28,145.25,10.89260183]
[1724006042933,3.441,145.27,145.25,7.45120183]
[1724006043939,3.48814851,145.28,145.25,10.89260183]
[1724006044240,0.04734851,145.28,145.25,7.45120183]
[1724006044636,0.04734851,145.28,145.27,7.4]
[1724006045841,0.04734851,145.28,145.27,10.841]
[1724006046248,0.04734851,145.28,145.27,7.4]
[1724006046946,7.4,145.36,145.27,7.4]
[1724006047151,5.769,145.35,145.29,7.4]
[1724006047349,3.4399,145.32,145.29,3.4405]
[1724006047550,4.18,145.35,145.3,7.4]
[1724006047945,0.04491506,145.34,145.31,0.05188585]
[1724006048149,3.4399,145.32,145.31,0.05188585]
[1724006049553,3.4397,145.33,145.31,0.05188585]
[1724006051549,3.4397,145.33,145.31,7.45188585]
[1724006053351,3.4398,145.32,145.31,0.05188585]
[1724006056552,3.4397,145.33,145.31,0.05188585]
[1724006056763,0.04491506,145.34,145.31,0.05188585]
[1724006057851,3.4398,145.32,145.31,0.05188585]
[1724006059353,3.4397,145.33,145.31,0.05188585]
[1724006059952,3.4397,145.33,145.31,7.45188585]
[1724006063364,3.4398,145.32,145.31,7.45188585]
[1724006063752,3.4398,145.32,145.31,0.05188585]
[1724006064560,0.04491506,145.34,145.31,7.45188585]
[1724006065663,3.4397,145.33,145.31,7.45188585]
[1724006067559,0.04491506,145.34,145.32,7.4]
[1724006067560,3.48431506,145.34,145.32,7.4]
[1724006072869,0.04491506,145.34,145.32,10.8398]
[1724006073862,0.04491506,145.34,145.33,3.4396]
[1724006077569,3.4385,145.38,145.34,3.4391]
[1724006077766,3.4385,145.38,145.36,7.4]
[1724006078071,3.4386,145.37,145.34,3.4391]
[1724006078269,3.4386,145.37,145.34,10.8391]
[1724006078771,3.48307574,145.37,145.34,10.88277673]
[1724006078971,3.4389,145.36,145.34,7.44367673]
[1724006081574,3.48317574,145.37,145.35,7.4]
[1724006087473,3.4389,145.36,145.35,7.4]
[1724006088671,3.4389,145.36,145.34,7.44367673]
[1724006091478,3.4389,145.36,145.34,0.04367673]
[1724006091781,3.4389,145.36,145.35,7.4]
[1724006093878,3.4389,145.36,145.34,7.44367673]
[1724006099285,3.4389,145.36,145.34,10.88297673]
[1724006099882,0.04447574,145.37,145.34,10.88297673]
[1724006099883,0.04447574,145.37,145.34,7.44367673]
[1724006100181,1.5148,145.41,145.36,7.4]
[1724006100381,1.5148,145.41,145.38,7.4]
[1724006100877,3.4383,145.39,145.38,7.4]
[1724006102078,4.18,145.44,145.38,7.4]
[1724006102286,3.0728,145.49,145.42,7.4]
[1724006102488,4.18,145.47,145.42,7.4]
[1724006102681,3.4372,145.43,145.42,7.4]
[1724006103178,3.4371,145.44,145.42,7.4]
[1724006103385,3.4371,145.44,145.43,7.4]
[1724006105487,3.4372,145.43,145.42,0.04600215]
[1724006107787,3.4372,145.44,145.42,0.04600215]
[1724006107982,7.4,145.48,145.42,7.44600215]
[1724006108392,27.07551536,145.49,145.42,0.04600215]
[1724006108592,7.4,145.47,145.42,0.04600215]
[1724006109997,3.4372,145.43,145.42,0.04600215]
[1724006112791,3.4372,145.43,145.42,7.44600215]
[1724006117401,3.4372,145.43,145.42,0.04600215]
[1724006122500,3.4372,145.43,145.42,7.44600215]
[1724006123708,3.4372,145.43,145.42,0.04600215]
[1724006123905,3.4381,145.4,145.24,37.55899209]
[1724006124206,3.4381,145.4,145.38,7.4]
[1724006124404,7.4,145.43,145.33,1.5672]
[1724006124599,3.4388,145.37,145.36,7.4]
[1724006125111,0.04600215,145.38,145.36,7.4]
[1724006125298,2.9506,145.44,145.37,7.4]
[1724006125498,2.9506,145.44,145.41,7.4]
[1724006125702,0.04412997,145.42,145.41,7.4]
[1724006125901,3.48162997,145.42,145.41,7.44492324]
[1724006126204,0.04412997,145.42,145.41,7.44492324]
[1724006126600,3.48162997,145.42,145.41,7.44492324]
[1724006129612,0.04412997,145.42,145.41,7.44492324]
[1724006134720,4.18,145.46,145.41,10.88262324]
[1724006134909,1.4615,145.48,145.43,7.4]
[1724006135711,1.4615,145.48,145.44,0.05245545]
[1724006135913,3.4369,145.45,145.44,0.05245545]
[1724006137811,1.4615,145.48,145.37,4.18]
[1724006138117,1.4615,145.48,145.4,7.4]
[1724006138118,8.8615,145.48,145.4,7.4]
[1724006138505,8.8615,145.48,145.41,7.4]
[1724006139014,0.05221626,145.46,145.43,0.04757907]
[1724006139404,3.437,145.44,145.43,0.04757907]
[1724006139610,3.437,145.44,145.43,7.44757907]
[1724006141721,3.4369,145.45,145.43,7.44757907]
[1724006141913,0.05221626,145.46,145.44,7.4]
[1724006142311,3.48891626,145.46,145.44,7.4]
[1724006142815,3.4367,145.45,145.44,7.4]
[1724006147824,3.4367,145.45,145.43,7.44757907]
[1724006148515,0.05221626,145.46,145.43,4.22757907]
[1724006149020,3.4367,145.45,145.43,4.22757907]
[1724006149214,3.4367,145.45,145.44,7.4]
[1724006149822,0.05221626,145.46,145.44,7.4]
[1724006150119,0.05221626,145.46,145.45,7.4]
[1724006150509,0.05221626,145.46,145.43,4.22757907]
[1724006150710,0.05221626,145.46,145.45,7.4]
[1724006153422,3.48871626,145.46,145.45,7.4]
[1724006154019,3.437,145.44,145.43,0.04757907]
[1724006154316,3.437,145.44,145.43,4.22757907]
[1724006154518,3.437,145.44,145.29,3.36981778]
[1724006154519,7.4,145.44,145.29,3.36981778]
[1724006154819,7.4,145.44,145.37,7.4]
[1724006154820,1.511,145.43,145.37,7.4]
[1724006155026,3.37264125,145.42,145.38,7.4]
[1724006155821,3.4381,145.4,145.39,0.05207119]
[1724006158724,3.439,145.36,145.25,29.6]
[1724006158927,3.439,145.36,145.35,7.4]
[1724006159415,7.55264125,145.42,145.35,7.4]
[1724006159620,1.511,145.43,145.39,7.4]
[1724006159820,0.04767877,145.42,145.41,7.4]
[1724006160021,3.48517877,145.42,145.41,7.4]
[1724006161721,3.4377,145.41,145.4,0.05065839]
[1724006164817,3.4377,145.41,145.4,7.45065839]
[1724006170933,3.4377,145.41,145.4,0.05065839]
[1724006171434,3.4377,145.41,145.4,7.45065839]
[1724006172339,3.4377,145.41,145.4,0.05065839]
[1724006173034,0.04767877,145.42,145.34,4.18]
[1724006173228,4.18,145.42,145.36,7.4]
[1724006173831,3.49630905,145.41,145.36,7.4]
[1724006174144,3.48329442,145.4,145.37,0.0507828]
[1724006174436,0.04519442,145.4,145.39,7.4]
[1724006175639,3.48309442,145.4,145.39,7.4]
[1724006180838,0.04519442,145.4,145.38,7.4]
[1724006181039,0.04519442,145.4,145.37,0.0507828]
[1724006181949,3.4384,145.38,145.37,0.0507828]
[1724006183443,3.4384,145.38,145.37,7.4507828]
[1724006187052,3.4396,145.34,145.31,1.4711]
[1724006187452,1.5557,145.39,145.33,7.4]
[1724006187652,3.47946351,145.42,145.38,7.4]
[1724006187843,7.65946351,145.42,145.41,7.4]
[1724006188048,4.18,145.44,145.41,7.4]
[1724006188248,1.55501638,145.43,145.41,7.4]